bitfinex-derivatives/quotes_SOLF0:USTF0_20250211
["timestamp","ask_amount","ask_price","bid_price","bid_amount"]
[1739273598248,0.03382373,202.75,202.71,1.176e-05]
[1739273598249,13.3788337,202.72,202.71,1.176e-05]
[1739273600953,8.4467337,202.72,202.71,1.176e-05]
[1739273601257,4.9319,202.73,202.71,1.176e-05]
[1739273602556,9.9904337,202.74,202.71,1.176e-05]
[1739273603159,8.4467337,202.74,202.71,1.176e-05]
[1739273603460,0.03382373,202.75,202.71,1.176e-05]
[1739273605061,4.9321,202.72,202.71,1.176e-05]
[1739273606061,13.3788337,202.72,202.71,1.176e-05]
[1739273623769,8.4467337,202.72,202.6,11.4283337]
[1739273623964,4.9342,202.64,202.6,11.4283337]
[1739273624366,4.9342,202.64,202.61,4.9348]
[1739273624763,4.9344,202.63,202.58,8.4467337]
[1739273625063,4.9344,202.63,202.6,0.03801754]
[1739273625868,4.96612261,202.64,202.6,0.03801754]
[1739273626069,0.03202261,202.64,202.6,0.03801754]
[1739273626269,0.03202261,202.64,202.6,8.48475124]
[1739273626578,0.03202261,202.64,202.61,4.9347]
[1739273627067,0.03202261,202.64,202.6,8.48475124]
[1739273627268,0.03202261,202.64,202.61,4.9348]
[1739273627771,4.9345,202.63,202.6,0.03801754]
[1739273627968,8.47875631,202.64,202.6,0.03801754]
[1739273629065,0.03202261,202.64,202.63,8.4467337]
[1739273629272,8.4467337,202.72,202.63,8.4467337]
[1739273629482,8.4467337,202.72,202.65,8.4467337]
[1739273629666,4.9326,202.7,202.65,8.4467337]
[1739273630474,4.96663061,202.7,202.65,8.48258662]
[1739273631975,13.41336431,202.7,202.65,0.03585292]
[1739273632977,13.41336431,202.7,202.65,4.96965292]
[1739273633178,8.48076431,202.7,202.65,0.03585292]
[1739273633477,8.48076431,202.7,202.66,4.9336]
[1739273633677,8.48076431,202.7,202.65,0.03585292]
[1739273633877,8.48076431,202.7,202.65,4.96965292]
[1739273633878,4.9329,202.69,202.65,4.96965292]
[1739273634082,8.48076431,202.7,202.65,0.03585292]
[1739273634376,4.9333,202.68,202.65,0.03585292]
[1739273636280,8.48076431,202.7,202.65,0.03585292]
[1739273636480,4.9329,202.69,202.65,0.03585292]
[1739273637581,13.41356431,202.7,202.65,4.96955292]
[1739273638281,4.9329,202.69,202.65,4.96955292]
[1739273641882,8.48076431,202.7,202.65,4.96955292]
[1739273641883,8.48076431,202.7,202.66,4.9335]
[1739273642383,8.48076431,202.7,202.65,0.03585292]
[1739273642384,0.03403061,202.7,202.65,8.48258662]
[1739273642883,0.03403061,202.7,202.67,4.9333]
[1739273644781,0.03403061,202.7,202.67,8.4467337]
[1739273644983,0.03403061,202.7,202.68,4.933]
[1739273645380,0.03403061,202.7,202.67,8.4467337]
[1739273645585,0.03403061,202.7,202.67,13.3800337]
[1739273645984,8.4467337,202.78,202.69,8.4467337]
[1739273646189,8.4467337,202.78,202.71,8.4467337]
[1739273647084,4.9311,202.77,202.72,4.9319]
[1739273647285,4.96337829,202.77,202.72,0.03689196]
[1739273647887,4.96337829,202.77,202.72,4.96899196]
[1739273649180,4.96337829,202.77,202.73,4.9319]
[1739273649387,0.03227829,202.77,202.73,8.4467337]
[1739273650086,0.03227829,202.77,202.74,4.9316]
[1739273650486,0.03227829,202.77,202.75,13.3780337]
[1739273651894,0.03227829,202.77,202.75,8.4467337]
[1739273652094,0.03227829,202.77,202.76,4.9312]
[1739273652890,0.03227829,202.77,202.75,13.3780337]
[1739273654592,0.03227829,202.77,202.76,4.9312]
[1739273654989,0.03227829,202.77,202.75,8.4467337]
[1739273655190,0.03227829,202.77,202.76,4.9312]
[1739273655384,8.4467337,202.86,202.75,8.4467337]
[1739273655609,4.9297,202.82,202.79,8.4467337]
[1739273655993,8.4467337,202.86,202.79,8.4467337]
[1739273656295,4.929,202.85,202.81,4.9298]
[1739273657389,4.929,202.85,202.8,4.96802888]
[1739273658295,4.9292,202.84,202.8,4.96802888]
[1739273658595,8.4467337,202.88,202.8,0.03782888]
[1739273659192,4.9294,202.84,202.8,0.03782888]
[1739273659589,13.6664737,202.9,202.83,8.4467337]
[1739273660087,13.6664737,202.9,202.84,0.03216469]
[1739273660395,4.9289,202.86,202.84,0.03216469]
[1739273660795,4.9288,202.86,202.84,0.03216469]
[1739273660992,5.21974,202.9,202.85,8.4467337]
[1739273661193,13.6664737,202.9,202.84,0.03216469]
[1739273661695,4.929,202.85,202.84,0.03216469]
[1739273662394,4.9288,202.86,202.84,0.03216469]
[1739273662701,13.6664737,202.9,202.84,0.03216469]
[1739273664200,4.9289,202.86,202.84,0.03216469]
[1739273664500,13.6664737,202.9,202.84,0.03216469]
[1739273665000,4.929,202.85,202.84,0.03216469]
[1739273665905,10.14764,202.9,202.84,4.96136469]
[1739273666098,5.21974,202.9,202.85,8.4467337]
[1739273666595,10.14774,202.9,202.85,8.4467337]
[1739273667202,4.9282,202.89,202.85,8.4467337]
[1739273668014,4.9283,202.88,202.85,8.4467337]
[1739273668903,5.21974,202.9,202.85,8.4467337]
[1739273669904,4.9283,202.88,202.85,8.4467337]
[1739273670509,4.929,202.86,202.84,0.03216469]
[1739273672006,13.6664737,202.9,202.84,0.03216469]
[1739273672408,4.9288,202.86,202.84,0.03216469]
[1739273673111,8.4467337,202.88,202.84,0.03216469]
[1739273673317,4.929,202.85,202.84,0.03216469]
[1739273677418,8.4467337,202.86,202.75,8.4467337]
[1739273677613,8.4467337,202.81,202.74,4.9314]
[1739273678210,4.9305,202.79,202.73,13.3785337]
[1739273678622,0.03385293,202.78,202.74,0.03549823]
[1739273678914,4.9312,202.76,202.74,0.03549823]
[1739273679718,4.9314,202.75,202.74,0.03549823]
[1739273680023,8.4467337,202.77,202.74,0.03549823]
[1739273680214,0.03385293,202.78,202.74,0.03549823]
[1739273680921,4.9314,202.75,202.74,0.03549823]
[1739273682522,13.3781337,202.75,202.74,0.03549823]
[1739273686126,4.9314,202.75,202.74,0.03549823]
[1739273689325,8.4467337,202.77,202.74,0.03549823]
[1739273689326,4.9311,202.77,202.74,0.03549823]
[1739273692529,4.9312,202.76,202.74,0.03549823]
[1739273693026,13.3776337,202.77,202.74,0.03549823]
[1739273696932,8.4467337,202.77,202.74,0.03549823]
[1739273697130,4.9314,202.76,202.74,0.03549823]
[1739273698834,8.4467337,202.75,202.74,0.03549823]
[1739273699832,13.3781337,202.75,202.74,0.03549823]
[1739273700155,8.4467337,202.75,202.65,8.4467337]
[1739273700433,8.4467337,202.71,202.65,8.4467337]
[1739273700633,8.4467337,202.69,202.64,6.84508952]
[1739273701233,8.48243277,202.69,202.64,6.88119057]
[1739273701829,8.4467337,202.67,202.64,6.88119057]
[1739273702530,13.3803337,202.67,202.64,6.88119057]
[1739273702931,8.4467337,202.65,202.64,0.03610105]
[1739273703133,8.4467337,202.65,202.58,6.84508952]
[1739273703339,8.4467337,202.63,202.58,6.84508952]
[1739273704433,13.41269337,202.63,202.58,6.87781008]
[1739273705634,8.47819337,202.63,202.58,6.87781008]
[1739273705933,4.9346,202.62,202.58,6.87781008]
[1739273706134,4.9346,202.62,202.58,0.03272056]
[1739273707636,4.9351,202.6,202.58,0.03272056]
[1739273708639,13.3820337,202.59,202.58,0.03272056]
[1739273715436,8.4467337,202.59,202.58,0.03272056]
[1739273716542,8.4467337,202.61,202.58,4.96822056]
[1739273716745,8.47819337,202.63,202.58,4.96822056]
[1739273717242,8.47819337,202.63,202.58,0.03272056]
[1739273717638,8.4467337,202.59,202.58,0.03272056]
[1739273718043,13.3820337,202.59,202.58,0.03272056]
[1739273721252,4.9367,202.54,202.5,1.5932]
[1739273721948,4.9372,202.51,202.47,13.3849337]
[1739273722343,4.97316033,202.51,202.47,13.41810072]
[1739273722650,4.9375,202.5,202.47,0.03316702]
[1739273724450,0.03596033,202.51,202.47,0.03316702]
[1739273725748,0.03596033,202.51,202.47,4.97126702]
[1739273727353,0.03596033,202.51,202.47,0.03316702]
[1739273727553,0.03596033,202.51,202.48,4.9379]
[1739273728553,0.03596033,202.51,202.47,0.03316702]
[1739273728754,0.03596033,202.51,202.47,4.97136702]
[1739273729855,0.03596033,202.51,202.48,4.9379]
[1739273730058,0.03596033,202.51,202.47,8.47990072]
[1739273730656,0.03596033,202.51,202.48,4.9378]
[1739273730850,0.03596033,202.51,202.47,8.47990072]
[1739273731755,0.03596033,202.51,202.5,4.9375]
[1739273733860,0.03596033,202.51,202.47,8.47990072]
[1739273734259,0.03596033,202.51,202.47,0.03316702]
[1739273734462,0.03596033,202.51,202.47,4.97116702]
[1739273734955,0.03596033,202.51,202.47,0.03316702]
[1739273735158,0.03596033,202.51,202.47,8.47990072]
[1739273736359,0.03596033,202.51,202.49,4.9375]
[1739273736860,0.03596033,202.51,202.47,8.47990072]
[1739273737158,0.03596033,202.51,202.5,4.9375]
[1739273737970,0.03596033,202.51,202.47,8.47990072]
[1739273738268,0.03596033,202.51,202.47,0.03316702]
[1739273738764,0.03596033,202.51,202.47,8.47990072]
[1739273738962,0.03596033,202.51,202.48,4.9379]
[1739273739962,0.03596033,202.51,202.49,4.9376]
[1739273742071,0.03596033,202.51,202.49,13.3843337]
[1739273743776,0.03596033,202.51,202.5,4.9375]
[1739273745272,8.4467337,202.62,202.49,8.4467337]
[1739273745470,8.4467337,202.62,202.55,8.4467337]
[1739273746474,8.4467337,202.62,202.56,0.03222363]
[1739273746475,0.03219569,202.61,202.56,0.03222363]
[1739273747073,4.96719569,202.61,202.56,4.96802363]
[1739273747471,4.96719569,202.61,202.56,0.03222363]
[1739273748569,0.03219569,202.61,202.56,0.03222363]
[1739273748770,4.9353,202.59,202.56,0.03222363]
[1739273750074,4.9356,202.58,202.56,0.03222363]
[1739273750277,8.4467337,202.6,202.56,0.03222363]
[1739273751979,4.9358,202.57,202.56,0.03222363]
[1739273754481,10.0413337,202.6,202.56,0.03222363]
[1739273755283,4.9356,202.58,202.56,0.03222363]
[1739273755483,10.0413337,202.6,202.56,0.03222363]
[1739273755684,4.9358,202.57,202.56,0.03222363]
[1739273756183,4.9356,202.58,202.56,0.03222363]
[1739273757577,4.9353,202.59,202.56,0.03222363]
[1739273757781,10.0413337,202.6,202.56,0.03222363]
[1739273758486,4.9356,202.58,202.56,0.03222363]
[1739273762289,8.4467337,202.6,202.56,0.03222363]
[1739273762490,0.03219569,202.61,202.57,8.4467337]
[1739273762789,0.03219569,202.61,202.56,0.03222363]
[1739273763086,8.4467337,202.6,202.56,0.03222363]
[1739273763488,4.9353,202.59,202.56,0.03222363]
[1739273763696,8.4467337,202.6,202.56,0.03222363]
[1739273765281,4.9355,202.59,202.56,0.03222363]
[1739273765487,8.4467337,202.6,202.56,0.03222363]
[1739273765692,0.03219569,202.61,202.56,0.03222363]
[1739273767786,4.96699569,202.61,202.57,4.9357]
[1739273768791,0.03219569,202.61,202.58,4.9353]
[1739273769290,0.03219569,202.61,202.6,4.935]
[1739273769589,0.03219569,202.61,202.59,8.4467337]
[1739273770684,4.96699569,202.61,202.59,8.4467337]
[1739273772084,0.03219569,202.61,202.59,8.4467337]
[1739273773886,0.03219569,202.61,202.59,13.3820337]
[1739273774093,0.03219569,202.61,202.59,8.4467337]
[1739273774492,0.03219569,202.61,202.6,4.935]
[1739273774691,5.21276,202.7,202.65,8.4467337]
[1739273775091,4.9336,202.66,202.61,13.3815337]
[1739273775492,8.4467337,202.68,202.61,8.4467337]
[1739273775693,0.03581376,202.66,202.61,0.03479084]
[1739273776094,4.934,202.65,202.61,0.03479084]
[1739273776491,0.03581376,202.66,202.61,0.03479084]
[1739273776886,8.4467337,202.64,202.61,0.03479084]
[1739273777795,4.9346,202.62,202.61,0.03479084]
[1739273780498,13.3813337,202.62,202.61,0.03479084]
[1739273791397,13.3813337,202.62,202.61,9.084e-05]
[1739273793205,4.9346,202.62,202.61,9.084e-05]
[1739273794501,8.48254746,202.66,202.61,9.084e-05]
[1739273794697,0.03581376,202.66,202.61,8.44682454]
[1739273795404,4.9339,202.65,202.61,8.44682454]
[1739273796316,0.03581376,202.66,202.61,8.44682454]
[1739273796713,8.48254746,202.66,202.61,9.084e-05]
[1739273797210,4.9345,202.63,202.61,9.084e-05]
[1739273798803,4.9346,202.62,202.61,9.084e-05]
[1739273800100,8.48254746,202.66,202.61,9.084e-05]
[1739273800808,4.9345,202.63,202.61,9.084e-05]
[1739273801205,8.48254746,202.66,202.61,9.084e-05]
[1739273801407,4.9339,202.65,202.61,9.084e-05]
[1739273801708,0.03581376,202.66,202.63,8.4467337]
[1739273803399,8.48254746,202.66,202.62,1.4851]
[1739273803600,8.48254746,202.66,202.61,9.084e-05]
[1739273804007,4.9342,202.64,202.61,9.084e-05]
[1739273804407,8.48254746,202.66,202.61,9.084e-05]
[1739273805009,4.9343,202.63,202.61,9.084e-05]
[1739273806814,8.48254746,202.66,202.61,9.084e-05]
[1739273807012,4.9341,202.64,202.61,9.084e-05]
[1739273807714,8.48254746,202.66,202.61,9.084e-05]
[1739273807913,4.934,202.65,202.61,9.084e-05]
[1739273811617,8.48254746,202.66,202.61,9.084e-05]
[1739273811813,4.96941376,202.66,202.61,13.38142454]
[1739273812014,0.03581376,202.66,202.61,8.44682454]
[1739273812513,0.03581376,202.66,202.62,4.9345]
[1739273813313,4.96941376,202.66,202.61,13.38152454]
[1739273813617,0.03581376,202.66,202.61,8.44682454]
[1739273814317,0.03581376,202.66,202.61,9.084e-05]
[1739273815516,4.9339,202.65,202.61,9.084e-05]
[1739273815720,0.03581376,202.66,202.61,9.084e-05]
[1739273816319,4.96941376,202.66,202.61,4.93489084]
[1739273817618,4.9341,202.64,202.61,9.084e-05]
[1739273818015,0.03581376,202.66,202.61,9.084e-05]
[1739273818318,4.96941376,202.66,202.61,4.93469084]
[1739273819220,0.03581376,202.66,202.62,4.9344]
[1739273819720,0.03581376,202.66,202.61,8.44682454]
[1739273820223,0.03581376,202.66,202.63,4.9341]
[1739273820419,0.03581376,202.66,202.61,8.44682454]
[1739273821321,4.96961376,202.66,202.61,13.38162454]
[1739273821524,0.03581376,202.66,202.61,8.44682454]
[1739273821823,0.03581376,202.66,202.63,8.4467337]
[1739273822019,0.03581376,202.66,202.64,4.9339]
[1739273822222,0.03581376,202.66,202.63,8.4467337]
[1739273823324,0.03581376,202.66,202.64,4.9341]
[1739273824618,0.03581376,202.66,202.63,8.4467337]
[1739273825028,8.48254746,202.66,202.62,1.4525]
[1739273825223,0.03581376,202.66,202.61,9.084e-05]
[1739273825421,0.03581376,202.66,202.61,8.44682454]
[1739273827526,4.9338,202.65,202.61,8.44682454]
[1739273827829,0.03581376,202.66,202.61,8.44682454]
[1739273828118,0.03581376,202.66,202.63,4.9341]
[1739273828325,0.03581376,202.66,202.61,8.44682454]
[1739273829017,0.03581376,202.66,202.62,4.9345]
[1739273830021,0.03581376,202.66,202.64,4.9339]
[1739273830225,0.03581376,202.66,202.63,8.4467337]
[1739273830619,0.03581376,202.66,202.65,4.9338]
[1739273832028,0.03581376,202.66,202.63,8.4467337]
[1739273832229,0.03581376,202.66,202.64,4.934]
[1739273832834,0.03581376,202.66,202.63,13.3808337]
[1739273834336,0.03581376,202.66,202.64,4.9341]
[1739273834834,0.03581376,202.66,202.63,8.4467337]
[1739273835034,0.03581376,202.66,202.64,4.9341]
[1739273836228,0.03581376,202.66,202.63,8.4467337]
[1739273836433,0.03581376,202.66,202.65,4.9338]
[1739273837635,0.03581376,202.66,202.64,4.934]
[1739273838032,0.03581376,202.66,202.63,8.4467337]
[1739273838638,0.03581376,202.66,202.61,8.44682454]
[1739273838839,0.03581376,202.66,202.62,4.9344]
[1739273840544,4.96941376,202.66,202.62,4.9344]
[1739273840741,4.96941376,202.66,202.61,13.38152454]
[1739273841243,0.03581376,202.66,202.63,8.4467337]
[1739273842144,0.03581376,202.66,202.64,4.9339]
[1739273842547,0.03581376,202.66,202.63,13.3810337]
[1739273843444,0.03581376,202.66,202.61,8.44682454]
[1739273844044,4.96941376,202.66,202.61,13.38142454]
[1739273844248,8.4467337,202.65,202.61,9.084e-05]
[1739273844752,4.9341,202.64,202.61,9.084e-05]
[1739273845647,4.9346,202.62,202.61,9.084e-05]
[1739273859769,8.4467337,202.63,202.51,4.9372]
[1739273859967,4.9365,202.55,202.5,1.5427]
[1739273860863,8.4467337,202.56,202.52,4.937]
[1739273861065,0.03439491,202.55,202.52,4.937]
[1739273864961,0.03439491,202.55,202.51,13.3839337]
[1739273865157,4.97069491,202.55,202.51,8.4467337]
[1739273865559,4.97069491,202.55,202.5,1.57752318]
[1739273866767,4.97069491,202.55,202.51,4.9371]
[1739273867467,0.03439491,202.55,202.51,4.9371]
[1739273868267,4.97069491,202.55,202.51,4.9371]
[1739273869166,8.4467337,202.54,202.51,4.9371]
[1739273869866,0.03439491,202.55,202.51,4.9371]
[1739273873064,0.03439491,202.55,202.5,1.57752318]
[1739273873271,0.03439491,202.55,202.51,8.4467337]
[1739273873773,0.03439491,202.55,202.5,1.57752318]
[1739273874876,8.4467337,202.54,202.5,0.03482318]
[1739273875074,8.4467337,202.52,202.5,0.03482318]
[1739273876876,13.3837337,202.52,202.5,0.03482318]
[1739273878471,4.9372,202.51,202.5,0.03482318]
[1739273878675,8.4467337,202.52,202.5,0.03482318]
[1739273879378,13.3839337,202.52,202.5,0.03482318]
[1739273879671,8.4467337,202.52,202.5,0.03482318]
[1739273880878,4.9372,202.51,202.5,0.03482318]
[1739273883075,13.3837337,202.52,202.5,0.03482318]
[1739273883978,8.4467337,202.52,202.5,0.03482318]
[1739273885583,13.3839337,202.52,202.5,0.03482318]
[1739273885783,8.4467337,202.52,202.5,0.03482318]
[1739273886184,4.9372,202.51,202.5,0.03482318]
[1739273899392,8.4467337,202.52,202.5,0.03482318]
[1739273901190,13.3838337,202.52,202.5,0.03482318]
[1739273901990,8.4467337,202.52,202.5,0.03482318]
[1739273903394,4.9372,202.51,202.5,0.03482318]
[1739273909597,4.9385,202.46,202.4,8.38598952]
[1739273909799,8.4467337,202.44,202.4,8.38598952]
[1739273910392,8.4467337,202.44,202.4,6.84508952]
[1739273910899,8.4467337,202.42,202.4,6.87898852]
[1739273911499,4.9397,202.41,202.4,6.87898852]
[1739273912892,4.9397,202.41,202.4,0.033899]
[1739273913101,8.4467337,202.42,202.4,0.033899]
[1739273914098,8.48400918,202.44,202.4,0.033899]
[1739273914401,8.48400918,202.44,202.4,4.973799]
[1739273916297,8.48400918,202.44,202.4,0.033899]
[1739273916499,8.48400918,202.44,202.41,4.9396]
[1739273916696,8.48400918,202.44,202.4,0.033899]
[1739273917704,8.48400918,202.44,202.4,4.973599]
[1739273917904,8.48400918,202.44,202.4,0.033899]
[1739273919001,8.48400918,202.44,202.41,4.9397]
[1739273919705,0.03727548,202.44,202.41,4.9397]
[1739273920604,0.03727548,202.44,202.43,13.3859337]
[1739273921503,8.4467337,202.48,202.43,8.4467337]
[1739273921705,13.3842337,202.5,202.43,8.4467337]
[1739273922110,13.3842337,202.5,202.45,4.9387]
[1739273922713,13.4182681,202.5,202.45,4.97054399]
[1739273923809,13.4182681,202.5,202.45,0.03184399]
[1739273924406,8.4807681,202.5,202.46,4.9384]
[1739273925811,13.4184681,202.5,202.46,4.9384]
[1739273926012,8.4807681,202.5,202.45,0.03184399]
[1739273926409,4.938,202.49,202.45,0.03184399]
[1739273926811,8.4807681,202.5,202.45,0.03184399]
[1739273927307,4.9381,202.48,202.45,0.03184399]
[1739273927604,8.4807681,202.5,202.45,4.97054399]
[1739273927806,8.4807681,202.5,202.45,0.03184399]
[1739273928812,4.938,202.48,202.45,0.03184399]
[1739273929812,8.4807681,202.5,202.45,0.03184399]
[1739273930815,4.938,202.48,202.45,0.03184399]
[1739273931615,4.9378,202.49,202.45,0.03184399]
[1739273932009,8.4807681,202.5,202.45,0.03184399]
[1739273932215,4.9384,202.47,202.45,0.03184399]
[1739273932511,8.4467337,202.48,202.45,0.03184399]
[1739273933314,4.9385,202.46,202.45,0.03184399]
[1739273933514,13.3852337,202.46,202.45,0.03184399]
[1739273936118,4.9384,202.47,202.45,0.03184399]
[1739273936820,8.4467337,202.48,202.45,0.03184399]
[1739273937015,13.3849337,202.48,202.45,0.03184399]
[1739273937421,4.9382,202.48,202.45,0.03184399]
[1739273938020,4.938,202.48,202.45,0.03184399]
[1739273938914,13.4184681,202.5,202.45,0.03184399]
[1739273940126,13.4184681,202.5,202.45,4.97054399]
[1739273940424,0.0340344,202.5,202.47,8.4467337]
[1739273941121,0.0340344,202.5,202.47,13.3848337]
[1739273944718,0.0340344,202.5,202.48,4.9378]
[1739273944925,0.0340344,202.5,202.47,8.4467337]
[1739273945221,0.0340344,202.5,202.48,4.938]
[1739273947525,0.0340344,202.5,202.47,13.3849337]
[1739273947833,0.0340344,202.5,202.45,8.47857769]
[1739273948030,0.0340344,202.5,202.45,13.41707769]
[1739273948031,4.9378,202.49,202.45,13.41707769]
[1739273948629,4.9378,202.49,202.45,8.47857769]
[1739273950630,0.0340344,202.5,202.45,8.47857769]
[1739273950832,4.9715344,202.5,202.45,13.41707769]
[1739273951630,4.9715344,202.5,202.47,8.4467337]
[1739273952334,0.0340344,202.5,202.47,8.4467337]
[1739273956140,0.0340344,202.5,202.45,8.47857769]
[1739273958242,4.9382,202.47,202.45,8.47857769]
[1739273958643,4.9382,202.47,202.45,0.03184399]
[1739273959046,0.0340344,202.5,202.45,0.03184399]
[1739273959244,4.9385,202.46,202.45,0.03184399]
[1739273961443,4.9385,202.46,202.45,4.399e-05]
[1739273963948,8.4467337,202.49,202.45,4.399e-05]
[1739273964641,0.0340344,202.5,202.45,4.399e-05]
[1739273964949,0.0340344,202.5,202.45,8.44677769]
[1739273965145,4.9717344,202.5,202.45,13.38527769]
[1739273965648,4.9717344,202.5,202.45,8.44677769]
[1739273966249,4.9378,202.49,202.45,8.44677769]
[1739273968748,0.0340344,202.5,202.45,8.44677769]
[1739273969052,0.0340344,202.5,202.45,4.399e-05]
[1739273969252,8.4467337,202.49,202.45,4.399e-05]
[1739273969653,4.9382,202.47,202.45,4.399e-05]
[1739273970655,4.938,202.48,202.45,4.399e-05]
[1739273971363,13.3845337,202.49,202.45,4.399e-05]
[1739273971555,4.9378,202.49,202.45,4.399e-05]
[1739273971859,0.0340344,202.5,202.45,8.44677769]
[1739273972365,4.9717344,202.5,202.45,8.44677769]
[1739273973361,4.9717344,202.5,202.45,13.38547769]
[1739273975962,0.0340344,202.5,202.45,8.44677769]
[1739273976159,0.0340344,202.5,202.49,8.4467337]
[1739273977664,0.0340344,202.5,202.49,13.3844337]
[1739273979159,0.0340344,202.5,202.49,4.9377]
[1739273980164,0.0340344,202.5,202.46,8.0701]
[1739273981162,0.0340344,202.5,202.49,4.9377]
[1739273984367,0.0340344,202.5,202.47,8.4467337]
[1739273984962,0.0340344,202.5,202.46,3.1317]
[1739273985269,4.9715344,202.5,202.46,3.1317]
[1739273988167,0.0340344,202.5,202.46,8.0701]
[1739273989769,4.9716344,202.5,202.46,3.1317]
[1739273989969,0.0340344,202.5,202.45,13.38547769]
[1739273990769,0.0340344,202.5,202.45,4.93874399]
[1739273991671,4.9715344,202.5,202.45,4.93874399]
[1739273993165,4.9715344,202.5,202.45,13.38547769]
[1739273994072,0.0340344,202.5,202.46,4.9385]
[1739273996772,0.0340344,202.5,202.47,4.9382]
[1739273998872,0.0340344,202.5,202.49,4.9377]
[1739274000868,0.0340344,202.5,202.48,4.9379]
[1739274001976,0.0340344,202.5,202.47,13.3849337]
[1739274002184,0.0340344,202.5,202.47,4.9382]
[1739274003179,4.9717344,202.5,202.45,20.23450638]
[1739274003376,0.0340344,202.5,202.45,6.84917268]
[1739274003685,8.4467337,202.49,202.45,6.84917268]
[1739274003978,4.9381,202.48,202.45,6.84917268]
[1739274004979,4.9381,202.48,202.45,4.399e-05]
[1739274005981,8.4467337,202.47,202.45,4.399e-05]
[1739274006181,13.3851337,202.47,202.45,4.399e-05]
[1739274006481,8.4467337,202.47,202.45,4.399e-05]
[1739274007382,13.3851337,202.47,202.45,4.399e-05]
[1739274007882,8.4467337,202.47,202.45,4.399e-05]
[1739274008080,8.4467337,202.49,202.45,4.399e-05]
[1739274008579,4.9381,202.48,202.45,4.399e-05]
[1739274013080,8.4467337,202.49,202.45,4.399e-05]
[1739274014188,4.9381,202.48,202.45,4.399e-05]
[1739274014384,8.4467337,202.49,202.45,4.399e-05]
[1739274015381,4.9384,202.47,202.45,4.399e-05]
[1739274015787,8.4467337,202.49,202.45,4.399e-05]
[1739274015985,4.9382,202.48,202.45,4.399e-05]
[1739274017384,4.9717344,202.5,202.45,4.399e-05]
[1739274018685,0.0340344,202.5,202.45,4.399e-05]
[1739274018991,4.9377,202.49,202.45,4.399e-05]
[1739274019186,0.0340344,202.5,202.45,4.399e-05]
[1739274019388,0.0340344,202.5,202.45,8.44677769]
[1739274019586,0.0340344,202.5,202.46,4.9385]
[1739274020791,4.9716344,202.5,202.46,4.9385]
[1739274021092,0.0340344,202.5,202.46,4.9385]
[1739274022894,0.0340344,202.5,202.47,4.9381]
[1739274024190,0.0340344,202.5,202.47,8.4467337]
[1739274024387,0.0340344,202.5,202.49,4.9377]
[1739274026198,0.0340344,202.5,202.48,4.9379]
[1739274027708,4.9715344,202.5,202.46,4.9383]
[1739274028002,4.9715344,202.5,202.45,8.44677769]
[1739274028705,4.9715344,202.5,202.45,13.38527769]
[1739274028899,0.0340344,202.5,202.45,8.44677769]
[1739274029105,4.9378,202.49,202.45,8.44677769]
[1739274029706,0.0340344,202.5,202.45,4.399e-05]
[1739274029907,4.9383,202.47,202.45,4.399e-05]
[1739274030328,8.4467337,202.49,202.45,4.399e-05]
[1739274030509,4.938,202.48,202.45,4.399e-05]
[1739274030707,8.4467337,202.49,202.45,4.399e-05]
[1739274031006,8.4467337,202.47,202.45,4.399e-05]
[1739274031205,4.9385,202.46,202.45,4.399e-05]
[1739274036513,8.4467337,202.47,202.38,6.86108862]
[1739274036811,1.6067,202.48,202.36,28.9280545]
[1739274036812,4.9401,202.4,202.36,28.9280545]
[1739274037812,4.97488085,202.4,202.36,28.96413811]
[1739274038014,4.97488085,202.4,202.36,27.48043811]
[1739274039716,0.03478085,202.4,202.36,27.48043811]
[1739274039919,0.03478085,202.4,202.36,0.03608361]
[1739274040413,0.03478085,202.4,202.36,4.97688361]
[1739274040614,0.03478085,202.4,202.36,0.03608361]
[1739274040815,4.97468085,202.4,202.36,0.03608361]
[1739274042012,0.03478085,202.4,202.36,0.03608361]
[1739274042820,4.97478085,202.4,202.36,0.03608361]
[1739274043216,0.03478085,202.4,202.36,0.03608361]
[1739274043410,4.9404,202.39,202.36,0.03608361]
[1739274043916,0.03478085,202.4,202.36,0.03608361]
[1739274044116,4.9404,202.38,202.36,0.03608361]
[1739274044611,0.03478085,202.4,202.36,0.03608361]
[1739274044815,4.97478085,202.4,202.36,0.03608361]
[1739274046218,0.03478085,202.4,202.36,0.03608361]
[1739274047121,0.03478085,202.4,202.36,4.97688361]
[1739274047321,0.03478085,202.4,202.36,0.03608361]
[1739274047716,0.03478085,202.4,202.37,4.9404]
[1739274048113,0.03478085,202.4,202.36,0.03608361]
[1739274048319,0.03478085,202.4,202.38,4.9403]
[1739274049239,0.03478085,202.4,202.39,4.9402]
[1739274052322,0.03478085,202.4,202.39,13.3869337]
[1739274061525,0.03478085,202.4,202.39,8.4467337]
[1739274062526,0.03478085,202.4,202.38,6.5407]
[1739274064528,0.03478085,202.4,202.37,8.4467337]
[1739274064730,0.03478085,202.4,202.36,4.97678361]
[1739274070131,0.03478085,202.4,202.37,13.3873337]